[Event "Late-Titled-Tuesday-Blitz-February-27-2024"]
[Site "Chess.com"]
[Date "2024.02.27"]
[Round "10"]
[White "GilbertoHernandezAmura"]
[Black "Journey_to_GrandMaster_YT"]
[Result "0-1"]
[WhiteElo "2450"]
[BlackElo "2521"]
[TimeControl "180+1"]
[EndTime "15:55:54 PST"]
[Termination "Journey_to_GrandMaster_YT won by resignation"]

1. e4 {[%clk 0:03:00.9]} 1... d6 {[%clk 0:02:59.8]} 2. d4 {[%clk 0:03:00.6]}
2... Nf6 {[%clk 0:02:58.6]} 3. Bd3 {[%clk 0:03:00.7]} 3... e5 {[%clk 0:02:58.6]}
4. c3 {[%clk 0:02:59.8]} 4... g6 {[%clk 0:02:54.7]} 5. Ne2 {[%clk 0:02:59.8]}
5... Bg7 {[%clk 0:02:54.4]} 6. Bg5 {[%clk 0:02:55]} 6... O-O {[%clk 0:02:53.5]}
7. h4 {[%clk 0:02:50.7]} 7... h6 {[%clk 0:02:50]} 8. Bxf6 {[%clk 0:02:36.7]}
8... Qxf6 {[%clk 0:02:48.6]} 9. h5 {[%clk 0:02:34]} 9... g5 {[%clk 0:02:39.7]}
10. Nd2 {[%clk 0:02:31.7]} 10... exd4 {[%clk 0:02:38.4]} 11. Nxd4 {[%clk
0:02:25.6]} 11... c5 {[%clk 0:02:37.5]} 12. Nb5 {[%clk 0:02:16.7]} 12... Qe7
{[%clk 0:02:26.4]} 13. O-O {[%clk 0:02:03.8]} 13... a6 {[%clk 0:02:25.1]} 14.
Na3 {[%clk 0:02:03.8]} 14... b5 {[%clk 0:02:23.5]} 15. Re1 {[%clk 0:02:02.8]}
15... Nd7 {[%clk 0:02:18.9]} 16. Nf3 {[%clk 0:01:50.9]} 16... Ne5 {[%clk
0:02:10.7]} 17. Nxe5 {[%clk 0:01:50.6]} 17... Bxe5 {[%clk 0:02:10.5]} 18. Be2
{[%clk 0:01:47.4]} 18... Kh8 {[%clk 0:01:57.6]} 19. Nc2 {[%clk 0:01:42.4]} 19...
g4 {[%clk 0:01:54.1]} 20. g3 {[%clk 0:01:32]} 20... Qg5 {[%clk 0:01:45.1]} 21.
Ne3 {[%clk 0:01:31.9]} 21... Rg8 {[%clk 0:01:44.1]} 22. Qd5 {[%clk 0:01:26.8]}
22... Be6 {[%clk 0:01:43.1]} 23. Qd3 {[%clk 0:01:08.6]} 23... Qxh5 {[%clk
0:01:36.1]} 24. a4 {[%clk 0:00:57.2]} 24... c4 {[%clk 0:01:31.6]} 25. Qd1 {[%clk
0:00:47.9]} 25... b4 {[%clk 0:01:19.8]} 26. cxb4 {[%clk 0:00:45.9]} 26... Bxb2
{[%clk 0:01:18.4]} 27. Rb1 {[%clk 0:00:38.2]} 27... c3 {[%clk 0:01:17]} 28. Nc4
{[%clk 0:00:30.3]} 28... Rac8 {[%clk 0:01:02.5]} 29. Nxb2 {[%clk 0:00:23.5]}
29... cxb2 {[%clk 0:00:57.2]} 30. Qxd6 {[%clk 0:00:22.7]} 30... Rgd8 {[%clk
0:00:52.9]} 31. Qxa6 {[%clk 0:00:20.6]} 31... Rd2 {[%clk 0:00:49.3]} 32. b5
{[%clk 0:00:19.1]} 32... Rxe2 {[%clk 0:00:42]} 33. Rxe2 {[%clk 0:00:18.4]} 33...
Rc1+ {[%clk 0:00:41.6]} 34. Re1 {[%clk 0:00:18.7]} 34... Qc5 {[%clk 0:00:30.7]}
35. Qa8+ {[%clk 0:00:18.2]} 35... Kh7 {[%clk 0:00:29.7]} 36. Qd8 {[%clk
0:00:13.9]} 36... Qc2 {[%clk 0:00:19.6]} 37. Qd1 {[%clk 0:00:06.3]} 37... Qxb1
{[%clk 0:00:18.2]} 0-1

[Event "Late-Titled-Tuesday-Blitz-February-27-2024"]
[Site "Chess.com"]
[Date "2024.02.27"]
[Round "10"]
[White "Laico"]
[Black "otrov-11"]
[Result "0-1"]
[WhiteElo "2402"]
[BlackElo "2617"]
[TimeControl "180+1"]
[EndTime "15:55:56 PST"]
[Termination "otrov-11 won on time"]

1. e4 {[%clk 0:02:59.6]} 1... e6 {[%clk 0:03:00.1]} 2. d4 {[%clk 0:02:59.3]}
2... d5 {[%clk 0:03:00.7]} 3. Nd2 {[%clk 0:02:59.8]} 3... c5 {[%clk 0:03:00]} 4.
exd5 {[%clk 0:02:55.1]} 4... Qxd5 {[%clk 0:03:00.9]} 5. Ngf3 {[%clk 0:02:55]}
5... cxd4 {[%clk 0:03:01.3]} 6. Bc4 {[%clk 0:02:55.7]} 6... Qd6 {[%clk 0:03:02]}
7. O-O {[%clk 0:02:54.9]} 7... Nf6 {[%clk 0:03:02.7]} 8. Nb3 {[%clk 0:02:55.1]}
8... Nc6 {[%clk 0:03:03.4]} 9. Nbxd4 {[%clk 0:02:54.9]} 9... Nxd4 {[%clk
0:03:04.3]} 10. Qxd4 {[%clk 0:02:55.1]} 10... Qxd4 {[%clk 0:03:04.3]} 11. Nxd4
{[%clk 0:02:56]} 11... Bd7 {[%clk 0:03:05.2]} 12. Bb5 {[%clk 0:02:55.4]} 12...
Bc5 {[%clk 0:03:00]} 13. Bxd7+ {[%clk 0:02:54]} 13... Nxd7 {[%clk 0:03:00.9]}
14. Nb3 {[%clk 0:02:54.2]} 14... Bd6 {[%clk 0:02:54.1]} 15. Rd1 {[%clk 0:02:52]}
15... Ke7 {[%clk 0:02:54.4]} 16. Bg5+ {[%clk 0:02:40.6]} 16... f6 {[%clk
0:02:54.2]} 17. Be3 {[%clk 0:02:40.7]} 17... Rhc8 {[%clk 0:02:41.5]} 18. Nd4
{[%clk 0:02:39]} 18... a6 {[%clk 0:02:37.8]} 19. c3 {[%clk 0:02:34.8]} 19... Ne5
{[%clk 0:02:36.9]} 20. Re1 {[%clk 0:02:25]} 20... Kf7 {[%clk 0:02:34]} 21. h3
{[%clk 0:02:04.4]} 21... Nc4 {[%clk 0:02:31.8]} 22. Bc1 {[%clk 0:02:04.2]} 22...
e5 {[%clk 0:02:30.4]} 23. Nf5 {[%clk 0:02:03.4]} 23... Bf8 {[%clk 0:02:24.4]}
24. b3 {[%clk 0:02:01.9]} 24... Nb6 {[%clk 0:02:24.3]} 25. c4 {[%clk 0:02:01.8]}
25... Nd7 {[%clk 0:02:24]} 26. Rd1 {[%clk 0:01:53.2]} 26... Ke6 {[%clk
0:02:24.3]} 27. Ne3 {[%clk 0:01:25]} 27... b5 {[%clk 0:02:23]} 28. Bb2 {[%clk
0:01:16.8]} 28... Bc5 {[%clk 0:02:20.1]} 29. Nd5 {[%clk 0:01:00.2]} 29... Rab8
{[%clk 0:02:14.8]} 30. Rac1 {[%clk 0:00:57.1]} 30... bxc4 {[%clk 0:02:05.4]} 31.
b4 {[%clk 0:00:26.6]} 31... Bxb4 {[%clk 0:01:57.9]} 32. Nxb4 {[%clk 0:00:27.5]}
32... Rxb4 {[%clk 0:01:58.5]} 33. Ba3 {[%clk 0:00:27.5]} 33... Rb6 {[%clk
0:01:59.2]} 34. Rc3 {[%clk 0:00:22.6]} 34... Rbc6 {[%clk 0:01:57.6]} 35. Rb1
{[%clk 0:00:19.5]} 35... Nb6 {[%clk 0:01:57.7]} 36. Bc1 {[%clk 0:00:10]} 36...
Nd5 {[%clk 0:01:57.6]} 37. Rc2 {[%clk 0:00:10.4]} 37... c3 {[%clk 0:01:54.5]}
38. Rb3 {[%clk 0:00:10.1]} 38... Rb6 {[%clk 0:01:46.4]} 39. Ra3 {[%clk
0:00:09.2]} 39... Rb1 {[%clk 0:01:45.3]} 40. Kh2 {[%clk 0:00:04.2]} 40... Nb4
{[%clk 0:01:44]} 41. Rcxc3 {[%clk 0:00:04.6]} 41... Rxc3 {[%clk 0:01:41.6]} 42.
Rxc3 {[%clk 0:00:05.5]} 42... Nxa2 {[%clk 0:01:39.2]} 43. Rc6+ {[%clk
0:00:04.4]} 43... Kf7 {[%clk 0:01:39.3]} 44. Be3 {[%clk 0:00:03.8]} 44... Nb4
{[%clk 0:01:39.1]} 45. Rb6 {[%clk 0:00:03.7]} 45... Rb2 {[%clk 0:01:35.6]} 46.
Bc5 {[%clk 0:00:03.7]} 46... Nd3 {[%clk 0:01:35.9]} 47. Rxa6 {[%clk 0:00:03.4]}
47... Nxc5 {[%clk 0:01:35.8]} 48. Ra7+ {[%clk 0:00:02.9]} 48... Kg6 {[%clk
0:01:36.3]} 49. Kg3 {[%clk 0:00:03.3]} 49... h5 {[%clk 0:01:36.7]} 50. f3 {[%clk
0:00:03.7]} 50... Rb3 {[%clk 0:01:36.6]} 51. Kh4 {[%clk 0:00:04.1]} 51... Kh6
{[%clk 0:01:36.1]} 52. g4 {[%clk 0:00:05]} 52... g5+ {[%clk 0:01:29]} 53. Kg3
{[%clk 0:00:05.1]} 53... hxg4 {[%clk 0:01:29.2]} 54. hxg4 {[%clk 0:00:05.2]}
54... Kg6 {[%clk 0:01:28.8]} 55. Rc7 {[%clk 0:00:04.8]} 55... Ne6 {[%clk
0:01:29.1]} 56. Rc6 {[%clk 0:00:04.6]} 56... Nf4 {[%clk 0:01:28.7]} 57. Ra6
{[%clk 0:00:03.5]} 57... Nd5 {[%clk 0:01:22]} 58. Rd6 {[%clk 0:00:03.2]} 58...
Nb4 {[%clk 0:01:22]} 59. Rb6 {[%clk 0:00:02.9]} 59... Rb2 {[%clk 0:01:20.6]} 60.
Rb8 {[%clk 0:00:01.6]} 60... Nd3 {[%clk 0:01:20]} 61. Rd8 {[%clk 0:00:02.5]}
61... Ne1 {[%clk 0:01:14.3]} 62. Rg8+ {[%clk 0:00:02.6]} 62... Kf7 {[%clk
0:01:14]} 63. Rc8 {[%clk 0:00:02.8]} 63... Rb3 {[%clk 0:01:14.1]} 64. Rc7+
{[%clk 0:00:02.4]} 64... Kg6 {[%clk 0:01:14.6]} 65. Rc8 {[%clk 0:00:01.9]} 65...
Nxf3 {[%clk 0:01:15.1]} 0-1

[Event "Late-Titled-Tuesday-Blitz-February-27-2024"]
[Site "Chess.com"]
[Date "2024.02.27"]
[Round "10"]
[White "rdarruda"]
[Black "IlanSchnaider"]
[Result "0-1"]
[WhiteElo "2502"]
[BlackElo "2701"]
[TimeControl "180+1"]
[EndTime "15:55:58 PST"]
[Termination "IlanSchnaider won by resignation"]

1. Nf3 {[%clk 0:02:59.3]} 1... Nf6 {[%clk 0:02:59.4]} 2. d4 {[%clk 0:02:56.1]}
2... d5 {[%clk 0:02:56.4]} 3. c4 {[%clk 0:02:55.8]} 3... c6 {[%clk 0:02:51.1]}
4. e3 {[%clk 0:02:55.8]} 4... e6 {[%clk 0:02:46.4]} 5. Nc3 {[%clk 0:02:55.6]}
5... Nbd7 {[%clk 0:02:44.8]} 6. Bd3 {[%clk 0:02:55.4]} 6... dxc4 {[%clk
0:02:44.1]} 7. Bxc4 {[%clk 0:02:54.6]} 7... b5 {[%clk 0:02:44.7]} 8. Bd3 {[%clk
0:02:54.1]} 8... b4 {[%clk 0:02:45.3]} 9. Ne4 {[%clk 0:02:53.4]} 9... Nxe4
{[%clk 0:02:44.3]} 10. Bxe4 {[%clk 0:02:53]} 10... Bb7 {[%clk 0:02:45]} 11. O-O
{[%clk 0:02:51.7]} 11... Be7 {[%clk 0:02:45.2]} 12. Bd2 {[%clk 0:02:49.8]} 12...
O-O {[%clk 0:02:43.7]} 13. Rc1 {[%clk 0:02:49]} 13... Rc8 {[%clk 0:02:40]} 14.
Qa4 {[%clk 0:02:45.3]} 14... Qb6 {[%clk 0:02:40.2]} 15. Rc4 {[%clk 0:02:28.4]}
15... Ba6 {[%clk 0:02:30.8]} 16. Rxc6 {[%clk 0:02:24.6]} 16... Rxc6 {[%clk
0:02:29.5]} 17. Qxc6 {[%clk 0:02:24.7]} 17... Qxc6 {[%clk 0:02:19.5]} 18. Bxc6
{[%clk 0:02:25.6]} 18... Bxf1 {[%clk 0:02:19.8]} 19. Kxf1 {[%clk 0:02:21]} 19...
Nb6 {[%clk 0:02:16.5]} 20. b3 {[%clk 0:02:16.1]} 20... Rc8 {[%clk 0:02:15.9]}
21. Be4 {[%clk 0:02:15.4]} 21... Nd5 {[%clk 0:02:14.3]} 22. Ke1 {[%clk 0:02:03]}
22... a5 {[%clk 0:01:57.4]} 23. Ne5 {[%clk 0:01:59.7]} 23... a4 {[%clk
0:01:46.8]} 24. bxa4 {[%clk 0:01:54.8]} 24... Nc3 {[%clk 0:01:46.3]} 25. Bxc3
{[%clk 0:01:54.2]} 25... Rxc3 {[%clk 0:01:47.2]} 26. Kd1 {[%clk 0:01:21.9]}
26... Ra3 {[%clk 0:01:45.4]} 27. Bc2 {[%clk 0:01:22.5]} 27... Rxa2 {[%clk
0:01:41.8]} 28. Nc6 {[%clk 0:01:21.2]} 28... Bd6 {[%clk 0:01:39.3]} 29. e4
{[%clk 0:01:18.2]} 29... Ra3 {[%clk 0:01:30.9]} 30. e5 {[%clk 0:01:15.1]} 30...
Bf8 {[%clk 0:01:28.8]} 31. Na5 {[%clk 0:01:12.5]} 31... b3 {[%clk 0:01:19.9]}
32. Nxb3 {[%clk 0:00:55]} 32... Rxa4 {[%clk 0:01:19.4]} 33. Kd2 {[%clk
0:00:53.2]} 33... g6 {[%clk 0:01:18.6]} 34. Kd3 {[%clk 0:00:50.6]} 34... h5
{[%clk 0:01:15.4]} 35. h3 {[%clk 0:00:49.7]} 35... Be7 {[%clk 0:01:12.8]} 36. f3
{[%clk 0:00:49.3]} 36... h4 {[%clk 0:01:10.9]} 37. Nd2 {[%clk 0:00:44.1]} 37...
Ra1 {[%clk 0:01:09.9]} 38. Ke2 {[%clk 0:00:32.4]} 38... Bg5 {[%clk 0:01:05.8]}
39. Ne4 {[%clk 0:00:31.6]} 39... Bf4 {[%clk 0:01:05.3]} 40. Bb3 {[%clk
0:00:29.4]} 40... Rb1 {[%clk 0:01:02.2]} 41. Bc4 {[%clk 0:00:28.8]} 41... Rb2+
{[%clk 0:01:01.9]} 42. Kf1 {[%clk 0:00:28.9]} 42... Be3 {[%clk 0:01:01.2]} 43.
d5 {[%clk 0:00:28.6]} 43... exd5 {[%clk 0:01:00.1]} 44. Bxd5 {[%clk 0:00:28.5]}
44... Kg7 {[%clk 0:00:50.8]} 45. e6 {[%clk 0:00:21.3]} 45... fxe6 {[%clk
0:00:51]} 46. Bxe6 {[%clk 0:00:21.6]} 46... Bd4 {[%clk 0:00:50.9]} 47. Bd5
{[%clk 0:00:21.3]} 47... Rb1+ {[%clk 0:00:50.8]} 48. Ke2 {[%clk 0:00:20.8]}
48... Rg1 {[%clk 0:00:51.2]} 49. Kd3 {[%clk 0:00:20.9]} 49... Ba7 {[%clk
0:00:47.7]} 50. f4 {[%clk 0:00:17.4]} 50... Rxg2 {[%clk 0:00:47.8]} 51. Ng5
{[%clk 0:00:16.8]} 51... Rg3+ {[%clk 0:00:47.3]} 52. Kc4 {[%clk 0:00:15.6]}
52... Be3 {[%clk 0:00:44]} 53. Be4 {[%clk 0:00:11]} 53... Kf6 {[%clk 0:00:41.1]}
0-1

[Event "Late-Titled-Tuesday-Blitz-February-27-2024"]
[Site "Chess.com"]
[Date "2024.02.27"]
[Round "10"]
[White "wqws"]
[Black "szachmistrz2500"]
[Result "1-0"]
[WhiteElo "2694"]
[BlackElo "2463"]
[TimeControl "180+1"]
[EndTime "15:56:01 PST"]
[Termination "wqws won on time"]

1. e4 {[%clk 0:03:00.6]} 1... c5 {[%clk 0:02:59.5]} 2. Nf3 {[%clk 0:03:00.9]}
2... d6 {[%clk 0:02:59.6]} 3. d4 {[%clk 0:03:01.3]} 3... cxd4 {[%clk 0:03:00.2]}
4. Nxd4 {[%clk 0:03:02.2]} 4... Nf6 {[%clk 0:03:00.6]} 5. Nc3 {[%clk 0:03:02.8]}
5... a6 {[%clk 0:03:01]} 6. Bg5 {[%clk 0:03:03.4]} 6... e6 {[%clk 0:03:00.9]} 7.
f4 {[%clk 0:03:04]} 7... h6 {[%clk 0:03:00.8]} 8. Bh4 {[%clk 0:03:04.1]} 8...
Be7 {[%clk 0:03:00.3]} 9. Qf3 {[%clk 0:03:03.8]} 9... Qc7 {[%clk 0:03:00.3]} 10.
O-O-O {[%clk 0:03:04.2]} 10... Nbd7 {[%clk 0:03:00.5]} 11. Bd3 {[%clk
0:03:04.7]} 11... g5 {[%clk 0:02:55.4]} 12. fxg5 {[%clk 0:03:04.2]} 12... Ne5
{[%clk 0:02:55.7]} 13. Qe2 {[%clk 0:03:04.6]} 13... Nfg4 {[%clk 0:02:55.6]} 14.
Nf3 {[%clk 0:03:04.9]} 14... Nxf3 {[%clk 0:02:52.9]} 15. gxf3 {[%clk 0:03:04.7]}
15... hxg5 {[%clk 0:02:52.3]} 16. Bg3 {[%clk 0:03:05.2]} 16... Ne5 {[%clk
0:02:52.4]} 17. f4 {[%clk 0:03:02.5]} 17... gxf4 {[%clk 0:02:50.7]} 18. Bxf4
{[%clk 0:03:03.4]} 18... Bd7 {[%clk 0:02:46.4]} 19. Bg3 {[%clk 0:03:01.9]} 19...
O-O-O {[%clk 0:02:41.9]} 20. h4 {[%clk 0:03:01.9]} 20... Kb8 {[%clk 0:02:39.9]}
21. h5 {[%clk 0:03:02.2]} 21... Bg5+ {[%clk 0:02:38.3]} 22. Kb1 {[%clk
0:03:01.9]} 22... Rc8 {[%clk 0:02:38.6]} 23. Qf2 {[%clk 0:02:32.9]} 23... Bc6
{[%clk 0:02:28.7]} 24. Bf4 {[%clk 0:02:22.9]} 24... Bf6 {[%clk 0:02:24.7]} 25.
Bc1 {[%clk 0:02:17.4]} 25... Bg7 {[%clk 0:02:13.1]} 26. h6 {[%clk 0:02:16.5]}
26... Bf8 {[%clk 0:01:54]} 27. Ne2 {[%clk 0:01:40.1]} 27... Ng4 {[%clk
0:01:48.8]} 28. Qh4 {[%clk 0:01:33.4]} 28... Nxh6 {[%clk 0:01:42.7]} 29. Rdf1
{[%clk 0:00:58]} 29... f5 {[%clk 0:01:38.6]} 30. Nd4 {[%clk 0:00:55.9]} 30...
fxe4 {[%clk 0:01:16.6]} 31. Nxc6+ {[%clk 0:00:47.3]} 31... Qxc6 {[%clk 0:01:12]}
32. Bxe4 {[%clk 0:00:47.2]} 32... d5 {[%clk 0:01:12.2]} 33. Bd3 {[%clk
0:00:45.7]} 33... Bg7 {[%clk 0:00:20.7]} 34. Rhg1 {[%clk 0:00:32.4]} 34... Qc7
{[%clk 0:00:10.7]} 35. Rg6 {[%clk 0:00:26.3]} 35... Nf5 {[%clk 0:00:09.9]} 36.
Qg4 {[%clk 0:00:23.8]} 36... Rcg8 {[%clk 0:00:02.9]} 37. Rxe6 {[%clk 0:00:20.5]}
37... Nd4 {[%clk 0:00:01.8]} 38. Rg6 {[%clk 0:00:18.7]} 38... Qc8 {[%clk
0:00:01.2]} 39. Rg1 {[%clk 0:00:18.1]} 1-0

[Event "Late-Titled-Tuesday-Blitz-February-27-2024"]
[Site "Chess.com"]
[Date "2024.02.27"]
[Round "10"]
[White "ACollins05"]
[Black "KaydenTroffChess"]
[Result "0-1"]
[WhiteElo "2606"]
[BlackElo "2818"]
[TimeControl "180+1"]
[EndTime "15:56:03 PST"]
[Termination "KaydenTroffChess won on time"]

1. d4 {[%clk 0:03:00.9]} 1... Nf6 {[%clk 0:02:59.8]} 2. c4 {[%clk 0:03:00.8]}
2... g6 {[%clk 0:03:00.3]} 3. Nc3 {[%clk 0:03:00.9]} 3... d5 {[%clk 0:03:00.7]}
4. Nf3 {[%clk 0:03:00.5]} 4... Bg7 {[%clk 0:03:00.5]} 5. Qb3 {[%clk 0:02:59.2]}
5... dxc4 {[%clk 0:02:57.3]} 6. Qxc4 {[%clk 0:03:00.1]} 6... O-O {[%clk
0:02:56.4]} 7. e4 {[%clk 0:03:00.7]} 7... a6 {[%clk 0:02:56.8]} 8. Be2 {[%clk
0:03:00.5]} 8... b5 {[%clk 0:02:55.4]} 9. Qb3 {[%clk 0:03:00.7]} 9... c5 {[%clk
0:02:54]} 10. dxc5 {[%clk 0:03:01.6]} 10... Be6 {[%clk 0:02:54]} 11. Qc2 {[%clk
0:03:01.6]} 11... Nbd7 {[%clk 0:02:54]} 12. Be3 {[%clk 0:03:01.3]} 12... Rc8
{[%clk 0:02:53.6]} 13. Rd1 {[%clk 0:02:57.4]} 13... b4 {[%clk 0:02:53.1]} 14.
Nd5 {[%clk 0:02:55.1]} 14... Bxd5 {[%clk 0:02:52.6]} 15. exd5 {[%clk 0:02:54.3]}
15... Nxc5 {[%clk 0:02:52.5]} 16. O-O {[%clk 0:02:51.6]} 16... Qd6 {[%clk
0:02:42.8]} 17. Rc1 {[%clk 0:02:36]} 17... Nfd7 {[%clk 0:02:37.6]} 18. Rfd1
{[%clk 0:02:33]} 18... a5 {[%clk 0:02:35.4]} 19. Bb5 {[%clk 0:02:30.6]} 19...
Qb8 {[%clk 0:02:31.7]} 20. Bc6 {[%clk 0:02:25.7]} 20... b3 {[%clk 0:02:19.3]}
21. axb3 {[%clk 0:02:19.2]} 21... Nxb3 {[%clk 0:02:17.3]} 22. Rb1 {[%clk
0:02:08.4]} 22... Ne5 {[%clk 0:02:03.9]} 23. Nxe5 {[%clk 0:02:04]} 23... Bxe5
{[%clk 0:02:04.8]} 24. h4 {[%clk 0:01:55]} 24... Qb4 {[%clk 0:01:56.6]} 25. h5
{[%clk 0:01:39.2]} 25... a4 {[%clk 0:01:48]} 26. Qe2 {[%clk 0:01:14.8]} 26...
Qh4 {[%clk 0:01:36.8]} 27. g3 {[%clk 0:01:09.9]} 27... Qh3 {[%clk 0:01:05]} 28.
Bxa4 {[%clk 0:00:51.5]} 28... Rb8 {[%clk 0:00:40.2]} 29. Qf3 {[%clk 0:00:35.6]}
29... Rb4 {[%clk 0:00:32]} 30. Bxb3 {[%clk 0:00:26.2]} 30... Rxb3 {[%clk
0:00:30.7]} 31. hxg6 {[%clk 0:00:22.6]} 31... fxg6 {[%clk 0:00:19.5]} 32. Qg2
{[%clk 0:00:23.1]} 32... Qf5 {[%clk 0:00:19.4]} 33. Rbc1 {[%clk 0:00:13.8]}
33... Bd6 {[%clk 0:00:19.3]} 34. Bd4 {[%clk 0:00:08.9]} 34... h5 {[%clk
0:00:18.7]} 35. Bc3 {[%clk 0:00:06.7]} 35... Rbb8 {[%clk 0:00:16.3]} 36. Rd2
{[%clk 0:00:05.6]} 36... Ra8 {[%clk 0:00:16.6]} 37. Re1 {[%clk 0:00:05.1]} 37...
Ra4 {[%clk 0:00:16.8]} 38. Rde2 {[%clk 0:00:05.1]} 38... h4 {[%clk 0:00:17]} 39.
Re6 {[%clk 0:00:04.4]} 39... hxg3 {[%clk 0:00:16.7]} 40. fxg3 {[%clk 0:00:05.3]}
40... Rg4 {[%clk 0:00:16.5]} 41. R6e3 {[%clk 0:00:03.2]} 41... Bc5 {[%clk
0:00:15.8]} 42. Kh2 {[%clk 0:00:03.4]} 42... Qh5+ {[%clk 0:00:15.6]} 43. Kg1
{[%clk 0:00:02.9]} 43... Qg5 {[%clk 0:00:15.3]} 44. Bd2 {[%clk 0:00:02.1]} 44...
Rxg3 {[%clk 0:00:15.7]} 0-1

[Event "Late-Titled-Tuesday-Blitz-February-27-2024"]
[Site "Chess.com"]
[Date "2024.02.27"]
[Round "10"]
[White "VinzentSpitzl"]
[Black "noblerone"]
[Result "0-1"]
[WhiteElo "2525"]
[BlackElo "2479"]
[TimeControl "180+1"]
[EndTime "15:56:03 PST"]
[Termination "noblerone won by checkmate"]

1. d4 {[%clk 0:03:00.9]} 1... d5 {[%clk 0:03:00.4]} 2. Nf3 {[%clk 0:03:00.2]}
2... Nf6 {[%clk 0:02:55.8]} 3. c4 {[%clk 0:02:59.5]} 3... c6 {[%clk 0:02:53.4]}
4. g3 {[%clk 0:02:59]} 4... Bf5 {[%clk 0:02:50.1]} 5. Bg2 {[%clk 0:02:58.9]}
5... e6 {[%clk 0:02:50.7]} 6. O-O {[%clk 0:02:58]} 6... Nbd7 {[%clk 0:02:51.1]}
7. b3 {[%clk 0:02:56.4]} 7... Be7 {[%clk 0:02:49.7]} 8. Nc3 {[%clk 0:02:45.3]}
8... O-O {[%clk 0:02:49.6]} 9. Re1 {[%clk 0:02:44]} 9... Ne4 {[%clk 0:02:45.7]}
10. Nxe4 {[%clk 0:02:37.7]} 10... Bxe4 {[%clk 0:02:45.5]} 11. Bf4 {[%clk
0:02:30.9]} 11... a5 {[%clk 0:02:43.8]} 12. Ne5 {[%clk 0:02:26.9]} 12... Bxg2
{[%clk 0:02:43]} 13. Nxd7 {[%clk 0:02:24.1]} 13... Qxd7 {[%clk 0:02:36.1]} 14.
Kxg2 {[%clk 0:02:24.4]} 14... Bf6 {[%clk 0:02:33.1]} 15. Be5 {[%clk 0:02:12.6]}
15... Bxe5 {[%clk 0:02:28.6]} 16. dxe5 {[%clk 0:02:12.6]} 16... Rfd8 {[%clk
0:02:29.5]} 17. e3 {[%clk 0:01:49.5]} 17... dxc4 {[%clk 0:02:21.6]} 18. bxc4
{[%clk 0:01:48.3]} 18... Qc7 {[%clk 0:02:16]} 19. Qb3 {[%clk 0:01:48]} 19...
Rab8 {[%clk 0:02:06.1]} 20. Qc3 {[%clk 0:01:43.1]} 20... Rd7 {[%clk 0:02:03.8]}
21. c5 {[%clk 0:01:32]} 21... Rd5 {[%clk 0:01:59.8]} 22. f4 {[%clk 0:01:30.8]}
22... Rbd8 {[%clk 0:01:57.4]} 23. Re2 {[%clk 0:01:31.1]} 23... Rd3 {[%clk
0:01:56.4]} 24. Qb2 {[%clk 0:01:22.1]} 24... h5 {[%clk 0:01:54.2]} 25. Rb1
{[%clk 0:01:20.2]} 25... R8d7 {[%clk 0:01:50.8]} 26. h4 {[%clk 0:01:09.7]} 26...
a4 {[%clk 0:01:42.2]} 27. Qb4 {[%clk 0:01:05.8]} 27... a3 {[%clk 0:01:33.3]} 28.
Rb3 {[%clk 0:01:05]} 28... Rxb3 {[%clk 0:01:30.1]} 29. axb3 {[%clk 0:01:00.1]}
29... Rd1 {[%clk 0:01:24.7]} 30. Qxa3 {[%clk 0:00:43.2]} 30... Qd7 {[%clk
0:01:23.3]} 31. Qb2 {[%clk 0:00:36.8]} 31... Qd5+ {[%clk 0:01:18.9]} 32. e4
{[%clk 0:00:37]} 32... Qxc5 {[%clk 0:01:17.1]} 33. Rf2 {[%clk 0:00:35.1]} 33...
Qe3 {[%clk 0:00:54.3]} 34. Qe2 {[%clk 0:00:31.6]} 34... Qc1 {[%clk 0:00:54]} 35.
f5 {[%clk 0:00:15.9]} 35... Rg1+ {[%clk 0:00:49.2]} 36. Kh2 {[%clk 0:00:15.7]}
36... Rh1+ {[%clk 0:00:47.5]} 37. Kg2 {[%clk 0:00:16.1]} 37... Qg1+ {[%clk
0:00:47.5]} 38. Kf3 {[%clk 0:00:16.5]} 38... Rh3 {[%clk 0:00:43.6]} 39. Rg2
{[%clk 0:00:16.4]} 39... Qc1 {[%clk 0:00:34.3]} 40. Qe3 {[%clk 0:00:13.8]} 40...
Qd1+ {[%clk 0:00:33.4]} 41. Kf2 {[%clk 0:00:05]} 41... Rh1 {[%clk 0:00:32.6]}
42. Qe2 {[%clk 0:00:05.4]} 42... Qd4+ {[%clk 0:00:31.5]} 43. Kf3 {[%clk
0:00:05.7]} 43... Rd1 {[%clk 0:00:28.9]} 44. f6 {[%clk 0:00:03.1]} 44... Rd3+
{[%clk 0:00:28.5]} 45. Kf4 {[%clk 0:00:03.5]} 45... gxf6 {[%clk 0:00:25.5]} 46.
exf6 {[%clk 0:00:03.5]} 46... Qxf6# {[%clk 0:00:26.4]} 0-1